Cogmind - Beta 13 @@@ ROGUE MODE // 2024.04.04 @ 12:10:03 Player: nowtakenusername Result: Destroyed by G-47 Trooper with Particle Gun Performance ------------- Evolutions (2) 1000 Regions Visited (5) 1000 Robots Destroyed (25) 125 Value Destroyed (669) 669 Prototype IDs (28) 560 Alien Tech Used (0) 0 Bonus (300) 300 TOTAL SCORE: 3654 Bonus ------- Aligned with FarCom 300 Cogmind --------- Core Integrity 0/550 Matter 300/300 Energy 84/100 System Corruption 0% Temperature Cool (9) Movement Core (200) Ox3 Location -8/Materials Parts ------- > --- POWER (1) -------- (None) > --- PROPULSION (4) --- (None) > --- UTILITY (4) ------ Medium Storage Unit Improved Signal Interpreter > --- WEAPON (2) ------- (None) > --- INVENTORY (10) --- Potential Leg Potential Leg Improved Heat Sink High-capacity Matter Pod (200) Targeting Computer Shield Generator Mini Grenade Launcher Datajack Peak State ------------ > --- POWER ------------ Ion Engine > --- PROPULSION ------- Aluminum Leg Aluminum Leg Carbon-fiber Leg Flexi-carbon Leg > --- UTILITY ---------- Medium Storage Unit Improved Signal Interpreter Shield Generator > --- WEAPON ----------- Advanced Beam Rifle Bore Cannon > --- INVENTORY -------- Light Nuclear Core Potential Leg Potential Leg Improved Heat Sink High-capacity Matter Pod Targeting Computer Particle Gun Rocket Launcher Mini Grenade Launcher Datajack [Rating: 29] Favorites ----------- Power Ion Engine Engine Ion Engine Power Core Light Nuclear Core Propulsion Light Treads Treads Light Treads Leg Aluminum Leg Wheel Compact Wheel Utility Large Storage Unit Device Shield Generator Storage Large Storage Unit Processor Improved Signal Interpreter Protection Light Armor Plating Weapon Assault Rifle Energy Gun Advanced Beam Rifle Energy Cannon Light EM Pulse Cannon Ballistic Gun Assault Rifle Ballistic Cannon Bore Cannon Launcher Mini Grenade Launcher Impact Weapon Hammer Special Melee Weapon Datajack Build | -11 -10 -10 -10 -9 -8 ------- Run | Yrd Mat Min Exi Min Mat Slots Evolved 4 | . . . . . 4 Power . | . . . . . . Propulsion 2 | . . . . . 2 Utility 2 | . . . . . 2 Weapon . | . . . . . . Parts Attached 48 | 9 7 13 . . 19 Power 4 | 1 . 1 . . 2 Engine 3 | 1 . 1 . . 1 Core 1 | . . . . . 1 Reactor . | . . . . . . Propulsion 12 | 2 . 5 . . 5 Treads 3 | 2 . 1 . . . Leg 8 | . . 3 . . 5 Wheel 1 | . . 1 . . . Hover . | . . . . . . Flight . | . . . . . . Utility 10 | 1 5 3 . . 1 Device 4 | . 2 2 . . . Storage 4 | 1 2 1 . . . Processor 1 | . . . . . 1 Hackware . | . . . . . . Protection 1 | . 1 . . . . Artifact . | . . . . . . Weapon 22 | 5 2 4 . . 11 Energy Gun 4 | 1 . . . . 3 Energy Cannon 2 | . . . . . 2 Ballistic Gun 6 | 4 1 1 . . . Ballistic Cannon 4 | . . 1 . . 3 Launcher 4 | . . 1 . . 3 Special Weapon . | . . . . . . Impact Weapon 1 | . . 1 . . . Slashing Weapon . | . . . . . . Piercing Weapon . | . . . . . . Special Melee Weapon 1 | . 1 . . . . Unidentified Prototypes 1 | . . . . . 1 Parts Lost 22 | . . 7 . . 15 Power 4 | . . 1 . . 3 Propulsion 8 | . . 2 . . 6 Utility 2 | . . 2 . . . Weapon 8 | . . 2 . . 6 Highest Loss Streak 15 | . . 7 . . 15 To Critical Strikes . | . . . . . . Average Slot Usage (%) 93 | . 99 80 100 100 63 Engine 12 | . 14 8 14 14 6 Treads 18 | . 28 14 . . . Leg 7 | . . 4 28 28 21 Device 4 | . 1 5 14 14 6 Storage 13 | . 14 14 14 14 9 Protection 7 | . 12 2 . . . Ballistic Gun 11 | . 17 10 . . . Ballistic Cannon 3 | . . 3 14 14 5 Launcher 4 | . . 11 14 14 1 Special Melee Weapon 6 | . 10 . . . . Naked Turns . | . . . . . . Heaviest Build 37 | 13 31 37 27 27 29 Greatest Support 55 | 40 40 40 30 30 55 Greatest Overweight (x) 5 | 1 . 2 . . 5 Average Overweight (x) . | . . . . . . Largest Inventory Capacity 15 | 8 15 15 10 10 10 Average Capacity 12 | 6 13 14 10 10 10 Most Carried 15 | 6 15 15 10 10 10 Average Carried 11 | 4 11 12 9 10 9 Final Capacity 15 | 8 15 10 10 10 10 Final Carried 15 | 6 15 10 10 10 8 Class Distribution -------------------- 99% | Mutant Dominant Class ---------------- Mutant | -10/Materials Mutant | -10/Mines Mutant | -10/Exiles Mutant | -9/Mines Mutant | -8/Materials Resources | -11 -10 -10 -10 -9 -8 ----------- Run | Yrd Mat Min Exi Min Mat Matter Collected 1269 | 181 434 218 . 27 409 Remotely . | . . . . . . Salvage Created 869 | . 139 164 . 21 545 Parts 48 | . 8 6 . 3 31 Haulers Intercepted 2 | . 2 . . . . Recyclers Shooed 2 | . . . . . 2 Parts Field Recycled . | . . . . . . Retrieved Matter . | . . . . . . Parts Self-Destructed . | . . . . . . Prevented . | . . . . . . Kills | -11 -10 -10 -10 -9 -8 ------- Run | Yrd Mat Min Exi Min Mat Combat Hostiles Destroyed 31 | . . 15 . . 16 Melee 3 | . . 3 . . . Guns 8 | . . 2 . . 6 Cannons 6 | . . 2 . . 4 AOE 14 | . . 8 . . 6 Classes Destroyed 8 | . 3 2 . 1 2 Tunneler 1 | . . . . 1 . Hauler 2 | . 2 . . . . Operator 1 | . 1 . . . . Watcher 3 | . 2 . . . 1 Swarmer 7 | . . . . . 7 Grunt 10 | . . 2 . . 8 Sentry 1 | . . . . . 1 Assembled 13 | . . 13 . . . Best Kill Streak 9 | . 1 9 . 1 9 Combat Bots Only 9 | . . 9 . . 5 Max Kills in Single Turn 3 | . 1 3 . 1 3 Gunslinging . | . . . . . . Exploded 3 | . . 3 . . 3 Melee 1 | . . 1 . . . Uniques/NPCs Destroyed . | . . . . . . Combat | -11 -10 -10 -10 -9 -8 -------- Run | Yrd Mat Min Exi Min Mat Hostile Shots Fired 240 | . . 65 . . 175 Missed 52 | . . 15 . . 37 Damage Taken 3086 | . . 1136 . . 1950 Core 764 | . . 214 . . 550 Absorbed by Shields 219 | . . 91 . . 128 Core Remaining (%) 57 | 100 . . . 14 . Volleys Fired 96 | . 36 21 . . 39 Largest 2 | . 2 1 . . 2 Hottest 118 | . 40 57 . . 118 Shots Fired 123 | . 42 23 . 1 57 Gun 80 | . 42 7 . . 31 Cannon 30 | . . 9 . . 21 Launcher 13 | . . 7 . 1 5 Special . | . . . . . . Kinetic 75 | . 42 16 . . 17 Thermal 31 | . . . . . 31 Explosive 13 | . . 7 . 1 5 Electromagnetic 4 | . . . . . 4 Robot Hit Streak 10 | . 5 8 . 4 10 Robot Miss Streak 7 | . 3 7 . . 2 Penetration Max . | . . . . . . Secondary Targets . | . . . . . . Shots Hit Robots 106 | . 51 18 . 1 36 Core Hits 62 | . 8 24 . 1 29 Critical Kills 3 | . . 1 . . 2 Critical Parts Destroyed 1 | . . . . . 1 Critical Strikes 6 | . . 1 . . 5 Burn 1 | . . . . . 1 Destroy 5 | . . 1 . . 4 Melee Attacks 48 | . 37 11 . . . Impact 11 | . . 11 . . . Slashing . | . . . . . . Piercing . | . . . . . . Sneak Attacks 27 | . 27 . . . . Combat Hostiles . | . . . . . . Follow-up Attacks . | . . . . . . Damage Inflicted 2462 | . 284 784 . 36 1358 Guns 811 | . 284 65 . . 462 Cannons 341 | . . 67 . . 274 Explosions 1131 | . . 475 . 36 620 Melee 177 | . . 177 . . . Ramming 2 | . . . . . 2 Kinetic 599 | . 284 132 . . 183 Thermal 462 | . . . . . 462 Explosive 1131 | . . 475 . 36 620 Electromagnetic 91 | . . . . . 91 Impact 177 | . . 177 . . . Slashing . | . . . . . . Piercing . | . . . . . . Highest Corruption 5 | . . 5 5 5 . Average Corruption 5 | . . 5 5 5 . Corruption Purged . | . . . . . . Corruption Blocked . | . . . . . . Effects 23 | . . 12 6 5 . Message Errors 6 | . . 2 1 3 . Matter Fused 4 | . . 2 1 1 . Heat Flow Errors 3 | . . 1 2 . . Energy Discharges 2 | . . 2 . . . Data Loss (minor) 3 | . . 2 1 . . Data Loss (major) 2 | . . 1 1 . . Misfires 3 | . . 2 . 1 . Overload Shots . | . . . . . . Overflow Damage 46 | . . 17 . . 29 Projectiles 11 | . . . . . 11 Explosions 35 | . . 17 . . 18 Melee . | . . . . . . Knockbacks 1 | . . . . . 1 Impact . | . . . . . . Kinetic 1 | . . . . . 1 Secondary . | . . . . . . Self-Inflicted Damage 195 | . . 195 . . . Shots 6 | . . 6 . . . Rammed 5 | . . . . . 5 Targets Rammed 5 | . . . . . 5 Kicked . | . . . . . . Crushed . | . . . . . . Highest Temperature 231 | . 6 221 225 . 231 Average Temperature 73 | . 4 82 100 . 73 Received Heat Transfer 1144 | . . 94 . . 1050 Siege Activations . | . . . . . . Robots Corrupted . | . . . . . . Combat Hostiles . | . . . . . . Parts Fried . | . . . . . . Impact Corruptions . | . . . . . . Robots Melted . | . . . . . . Combat Hostiles . | . . . . . . Parts Melted 4 | . . . . . 4 Heat Transferred 999 | . . . . . 999 Parts Sabotaged . | . . . . . . Parts Stolen . | . . . . . . Parts Stripped . | . . . . . . Power Chain Reactions . | . . . . . . Alert | -11 -10 -10 -10 -9 -8 ------- Run | Yrd Mat Min Exi Min Mat Peak Influence 400 | . 31 81 . 11 400 Initial 3 | . . . . . 3 Average 31 | . 5 21 . 4 226 Maximum Alert Level 2 | . . . . . 2 Low Security (%) 93 | 100 100 100 . 100 39 Level 1 6 | . . . . . 58 Level 2 . | . . . . . 2 Level 3 . | . . . . . . Level 4 . | . . . . . . Level 5 . | . . . . . . High Security . | . . . . . . Max Security . | . . . . . . Squads Dispatched 2 | . 1 . . . 1 Investigation 1 | . 1 . . . . Extermination . | . . . . . . Reinforcement 1 | . . . . . 1 Assault . | . . . . . . Garrison . | . . . . . . Intercept . | . . . . . . Searches Triggered . | . . . . . . Construction Impeded 1 | . . . . . 1 Haulers Reinforced . | . . . . . . Active Scanning Responses . | . . . . . . Cargo Convoy Interrupts . | . . . . . . Stealth | -11 -10 -10 -10 -9 -8 --------- Run | Yrd Mat Min Exi Min Mat Distress Signals 1 | . . . . . 1 Communications Jammed . | . . . . . . Distress Signals . | . . . . . . Times Spotted 52 | . 11 18 . . 23 Peak Tracking Total 9 | . 1 9 . . 7 Tactical Retreats 3 | . . 2 . . 1 Traps | -11 -10 -10 -10 -9 -8 ------- Run | Yrd Mat Min Exi Min Mat Traps Triggered 1 | . 1 . . . . Indirectly . | . . . . . . Trap Hack Attempts . | . . . . . . Triggered . | . . . . . . Disarmed . | . . . . . . Reprogrammed . | . . . . . . Reused . | . . . . . . Traps Extracted . | . . . . . . Installed . | . . . . . . Triggered . | . . . . . . Machines | -11 -10 -10 -10 -9 -8 ---------- Run | Yrd Mat Min Exi Min Mat Machines Disabled 1 | . . . . . 1 Max in Single Turn 1 | . . . . . 1 Machines Repaired . | . . . . . . Machines Dismantled . | . . . . . . Machines Sabotaged . | . . . . . . Overloaded Fab Kills . | . . . . . . Hacking | -11 -10 -10 -10 -9 -8 --------- Run | Yrd Mat Min Exi Min Mat Machines Accessed 8 | . 6 . 1 . 1 Terminals 6 | . 6 . . . . Fabricators . | . . . . . . Repair Stations . | . . . . . . Recycling Units 1 | . . . . . 1 Scanalyzers . | . . . . . . Garrison Access . | . . . . . . Total Hacks 16 | . 14 . 1 . 1 Successful 9 | . 8 . 1 . . Failed 7 | . 6 . . . 1 Catastrophic 2 | . 1 . . . 1 Database Lockouts . | . . . . . . Manual 4 | . 3 . 1 . . Terminals 14 | . 14 . . . . Fabricators . | . . . . . . Repair Stations . | . . . . . . Recycling Units 1 | . . . . . 1 Scanalyzers . | . . . . . . Garrison Access . | . . . . . . Terminal Hacks 9 | . 8 . 1 . . Prototype ID Bank 2 | . 2 . . . . Branch Access Points 1 | . 1 . . . . Unreport Threat 1 | . 1 . . . . Locate Traps 1 | . 1 . . . . Investigation Status 1 | . 1 . . . . Hauler Manifests 1 | . 1 . . . . Zone Layout 1 | . 1 . . . . Derelict Proto ID Bank 1 | . . . 1 . . Fabricator Hacks . | . . . . . . Repair Station Hacks . | . . . . . . Recycling Unit Hacks . | . . . . . . Scanalyzer . | . . . . . . Garrison Access Hacks . | . . . . . . Unauthorized Hacks . | . . . . . . Terminals . | . . . . . . Fabricators . | . . . . . . Repair Stations . | . . . . . . Recycling Units . | . . . . . . Scanalyzers . | . . . . . . Garrison Access . | . . . . . . Data Cores Recovered . | . . . . . . Used . | . . . . . . Hacking Detections 5 | . 4 . . . 1 Full Trace Events 1 | . 1 . . . . Feedback Events . | . . . . . . Feedback Blocked . | . . . . . . Robot Schematics Acquired . | . . . . . . Robots Built . | . . . . . . Authchips . | . . . . . . Time . | . . . . . . Total Robot Build Rating . | . . . . . . Part Schematics Acquired . | . . . . . . Parts Built . | . . . . . . Authchips . | . . . . . . Time . | . . . . . . Total Part Build Rating . | . . . . . . Parts Repaired . | . . . . . . Time . | . . . . . . Parts Recycled . | . . . . . . Recycled Matter . | . . . . . . Retrieved Matter . | . . . . . . Retrieved Components . | . . . . . . Parts Scanalyzed . | . . . . . . Part Schematics Acquired . | . . . . . . Parts Damaged . | . . . . . . Bothacking | -11 -10 -10 -10 -9 -8 ------------ Run | Yrd Mat Min Exi Min Mat Used RIF Installer . | . . . . . . Robots Hacked 13 | . 13 . . . . Non-combat 13 | . 13 . . . . Combat . | . . . . . . Robot Hacks Applied 19 | . 19 . . . . parse_system 2 | . 2 . . . . no_distress 15 | . 15 . . . . find_recycling 1 | . 1 . . . . check_alert 1 | . 1 . . . . Relay Couplers Released . | . . . . . . Fabnet Peak Effective % . | . . . . . . Robots Rewired . | . . . . . . Allies Hacked . | . . . . . . Hacks Repelled . | . . . . . . Allies | -11 -10 -10 -10 -9 -8 -------- Run | Yrd Mat Min Exi Min Mat Total Allies . | . . . . . . Largest Group . | . . . . . . Highest-Rated Group . | . . . . . . Highest-Rated Ally . | . . . . . . Total Orders . | . . . . . . Ally Attacks . | . . . . . . Total Damage . | . . . . . . Kills . | . . . . . . Allies Corrupted . | . . . . . . Allies Melted . | . . . . . . Intel | -11 -10 -10 -10 -9 -8 ------- Run | Yrd Mat Min Exi Min Mat Robot Analysis Total . | . . . . . . Derelict Logs Recovered . | . . . . . . Drone Launches . | . . . . . . Drone Recoveries . | . . . . . . Exploration | -11 -10 -10 -10 -9 -8 ------------- Run | Yrd Mat Min Exi Min Mat Turns Passed 3307 | 119 1848 479 290 249 322 Spaces Moved 1869 | 68 1002 236 240 206 117 Core 29 | 12 . . . . 17 Treads 1158 | 56 1002 100 . . . Legs 605 | . . 59 240 206 100 Wheels 77 | . . 77 . . . Hover . | . . . . . . Flight . | . . . . . . Fastest Speed 50 | 50 160 115 120 120 120 Average Speed 148 | 148 160 161 120 120 137 Slowest Speed 300 | 160 160 240 120 120 300 Overloaded Moves . | . . . . . . Propulsion Burnouts . | . . . . . . Robots Hopped . | . . . . . . Cave-ins Triggered . | . . . . . . Exploration Rate (%) 40 | 6 84 46 43 55 10 Regions Visited 5 Branch Regions 3 Pre-discovered Areas . | . . . . . . Known Exits Taken 1 | . 1 . . . . Unknown Exits Taken 4 | 1 . 1 1 1 . Scrap Searched 2 | . . 1 . 1 . Spaces Dug . | . . . . . . Terrain Destroyed 145 | . . 85 . 6 54 Melee . | . . . . . . Projectile 16 | . . 5 . . 11 AOE 129 | . . 80 . 6 43 Terrain Rammed . | . . . . . . Walls Destroyed . | . . . . . . Machines Disabled . | . . . . . . Actions | -11 -10 -10 -10 -9 -8 --------- Run | Yrd Mat Min Exi Min Mat Total 2225 | 82 1188 295 243 208 209 Wait 119 | . 90 1 . 3 25 Move 1864 | 67 1001 235 239 205 117 Hop . | . . . . . . Pick Up 28 | 6 12 8 2 . . Fast Attach 16 | 5 2 . . . 9 Attach 11 | 1 . 7 . . 3 Detach 2 | . . . . . 2 Swap 21 | 3 5 6 . . 7 Drop 15 | . 5 6 2 . 2 Fire 96 | . 36 21 . . 39 Melee 48 | . 37 11 . . . Ram 5 | . . . . . 5 Kick . | . . . . . . Crush . | . . . . . . Escape Stasis . | . . . . . . Rewire . | . . . . . . Trap . | . . . . . . Miscellaneous . | . . . . . . Route ------- -11/Scrapyard -10/Materials (discovered 3 exits: [*Mat x2] / *Min) -10/Mines (discovered 3 exits: [*Mat] / *Exi / [*Sub]) -10/Exiles -9/Mines -8/Materials History --------- Turn | Location | Event 16 | -11/Scrapyard | Discovered new exit (range 15) 120 | -11/Scrapyard | Entered Materials 318 | -10/Materials | Build established: Mutant 338 | -10/Materials | Discovered new exit (range 9) 580 | -10/Materials | Identified exit to Mines 596 | -10/Materials | Discovered new exit (range 7) 1164 | -10/Materials | Discovered new exit (range 16) 1968 | -10/Materials | Entered Mines 1977 | -10/Mines | Assembled infested the area 1982 | -10/Mines | Assisted by a Guerilla fighting off Assembled 2062 | -10/Mines | Core integrity fell below 50% 2087 | -10/Mines | Destroyed 9 combat bots 2093 | -10/Mines | Lost 7 parts (1p2n2u2w) 2287 | -10/Mines | Discovered new exit (range 9) 2295 | -10/Mines | Core integrity fell below 20% 2308 | -10/Mines | Discovered new exit (range 9) 2409 | -10/Mines | Received a Rocket Launcher from a helpful Derelict 2441 | -10/Mines | Deemed a non-threat by the Exiles lab entrance 2442 | -10/Mines | Discovered new exit (range 5) 2447 | -10/Mines | Entered Exiles 2473 | -10/Exiles | Discovered new exit (range 14) 2489 | -10/Exiles | Met 8R-AWN 2511 | -10/Exiles | Met EX-HEX 2542 | -10/Exiles | Met EX-BIN 2558 | -10/Exiles | Aligned with FarCom system 2559 | -10/Exiles | Given EX-Vault access code 2588 | -10/Exiles | Opened EX-Vault 2602 | -10/Exiles | Found Potential Leg 2608 | -10/Exiles | Found Potential Leg 2635 | -10/Exiles | Warned to stay clear of 0b10 Research branches 2737 | -10/Exiles | Left Exiles lab with Potential Leg 2737 | -10/Exiles | Entered Mines 2764 | -9/Mines | Met a Derelict bent on vengeance 2784 | -9/Mines | Discovered new exit (range 9) 2986 | -9/Mines | Entered Materials 2986 | -8/Materials | Evolved 4 slots: Propulsion x2, Utility x2 3248 | -8/Materials | Core integrity fell below 50% 3274 | -8/Materials | Core integrity fell below 20% 3308 | -8/Materials | Destroyed by G-47 Trooper with Particle Gun Last Messages --------------- 03256_ Acquired 2 matter. 03257_ The unstable cave ceiling collapses. 03263_ Lgt. Nuclear Core destroyed. 03270_ Acquired Lgt. EM Pulse Cannon. 03280_ R-06 Scavenger collects Imp. Heat Sink. 03280_ G-47 Trooper misfires. 03288_ R-06 Scavenger collects Particle Gun. 03291_ G-47 Trooper destroyed. 03292_ Lgt. EM Pulse Cannon destroyed. 03293_ R-06 Scavenger collects Lgt. Nuclear Core. 03294_ Slammed into G-47 Trooper. 03300_ Lgt. EM Pulse Cannon destroyed. 03302_ Slammed into G-47 Trooper. 03304_ Destabilizing: System interference. 03304_ Imp. Signal Interpreter temporarily disabled. 03305_ U-05 Engineer builds a Wall. 03306_ Slammed into G-47 Trooper. 03306_ U-05 Engineer lays Concrete. Map ----- +----------------------------------------------------+ | | | | | | | | | | | | | | | | | | | | | | | | | | | | | | | | | | | | | | | ?????????????????????????????????????????????????? | | ?????????????????????????????????????????????????? | | ?????????????????????########????????????????????? | | ?????????????????????# ! #????????????????????? | | ?????????????????????# w #????????????????????? | | ?????????????????????# g #????????????????????? | | ?????????????????????# ]@ #????????????????????? | | ?????????????????????# #????????????????????? | | ?????????????????????# [= #??????????????####### | | ?????????????????????####%###??????????????# = | | ??????????????????????# * #??????????????# | | ?????????? ######### r #??????????????# | | ?????????? ! #??????????????# | | ?????????? ^ ^ ####?#?#####???# | | ??????????# """"^ """"% # # ### ##??# | | ?????????????? """" """% #############+ # | | ??????????# """" """% * | | ??????????+ ! % | | ??????????# u g = " | | ???????????# ###+"###"######### "%" ######### | | ????????????????????# ????? ####" # # # | | ????????????????????#?????? # # ?##? | | ???????????????????????????# # + ! ??? | | ???????????????????????????# # # #?? | | ???????????????????????????# + # #?? | | ???????????????????????????# *! # #[ #?? | | ???????????????????????????#"S *! # #?######?? | | ???????????????????????????#""" !! # #????????? | | ???????????????????????????? "" # #????????? | | ??????????????????????????????? # +????????? | | ????????????????????????????????##??# #????????? | +----------------------------------------------------+ Best States ------------- Heat Dissipation 31 Energy Generation 14 Energy Capacity 250 Matter Stores 300 Matter Capacity 300 Sight Range 16 Terrain Scan Density 10 Armor Coverage 150 Evasion (%) 55 Recoil Reduction 2 Item Schematics ----------------- None Robot Schematics ------------------ None Fabricated ------------ Nothing Alien Tech Used ----------------- None Achievements -------------- Let's See Who's Tougher Maybe Next Time I'll Detach My Launcher Challenges ------------ None Game ------ Seed RestorationClaymoresRay Manual? 0 Play Time 00:39:59 Cumulative 8.9 hours Start 2024.04.03 @ 21:38:14 End 2024.04.04 @ 12:10:03 Sessions 2 Manual Loads 0 Difficulty Rogue Special Mode None Game No. 7 Rogue 7 Adventurer 0 Explorer 0 Win Type - Total 0 Types 0/0/0/0/0/0/0/0/0 Lore% 15 Gallery% 12 Achievement% 12 Wizard Run 0 Options --------- Layout 1 ASCII 0 Keyboard 1 Movement Vi Keybinds 0 Fullscreen 1 Font 24/Smallcaps Map View 50x35 Zoom Use 0% Tactical HUD 1 Map Filters NONE Filters NONE Steam 1 RUN: 326bab55-a2ee-441c-a90c-7aeec2f1b258